bitfinex/quotes_SOLUSD_20240626
["timestamp","ask_amount","ask_price","bid_price","bid_amount"]
[1719362323197,24.5924,137.04,136.95,32.1741]
[1719362323414,7.3003,136.98,136.95,18.2536]
[1719362324408,7.3,136.99,136.95,25.5555]
[1719362325493,15.3192,137.01,136.93,7.3026]
[1719362325494,26.89,136.96,136.93,7.3026]
[1719362325805,26.89,136.94,136.93,7.3026]
[1719362338037,7.3008,136.97,136.93,7.3026]
[1719362340600,7.3008,136.97,136.92,32.13]
[1719362341599,7.3008,136.97,136.93,7.3027]
[1719362341812,7.3005,136.98,136.94,7.3024]
[1719362343229,7.3008,136.97,136.93,7.3028]
[1719362346939,7.3014,136.96,136.92,32.13]
[1719362349051,7.3019,136.95,136.92,24.8267]
[1719362349341,7.3019,136.95,136.91,22.8492]
[1719362350221,7.303,136.93,136.89,7.3046]
[1719362350529,7.3028,136.94,136.89,7.3046]
[1719362351032,7.3028,136.94,136.9,7.3045]
[1719362351419,7.3021,136.95,136.9,7.3045]
[1719362352140,7.3021,136.95,136.91,7.304]
[1719362352332,7.3021,136.95,136.9,25.5656]
[1719362352935,7.3021,136.95,136.91,7.3039]
[1719362353135,6.66944262,136.97,136.92,18.2584]
[1719362353327,6.66944262,136.97,136.93,7.3026]
[1719362353637,7.3017,136.96,136.92,25.5617]
[1719362354955,7.3025,136.94,136.9,7.3042]
[1719362355120,16.6187,136.96,136.89,18.2618]
[1719362355323,0.17,136.95,136.89,18.2618]
[1719362355546,7.3035,136.92,136.89,18.2618]
[1719362355747,7.3032,136.93,136.89,18.2618]
[1719362355950,7.3032,136.93,136.89,25.5669]
[1719362357662,7.3026,136.94,136.89,25.5669]
[1719362357828,7.3021,136.95,136.89,18.2618]
[1719362358030,7.3021,136.95,136.91,7.3036]
[1719362358945,7.3025,136.94,136.9,7.3045]
[1719362359953,34.8724,136.96,136.87,15.8884]
[1719362360128,18.2565,136.94,136.87,15.8884]
[1719362360331,18.2565,136.94,136.86,7.3062]
[1719362360526,7.3042,136.91,136.86,7.3062]
[1719362360734,7.3042,136.91,136.87,7.306]
[1719362361137,7.3052,136.89,136.85,31.6792]
[1719362361346,18.2565,136.94,136.85,18.2678]
[1719362361347,7.3057,136.88,136.85,18.2678]
[1719362361649,7.3054,136.89,136.85,25.575]
[1719362368036,7.3054,136.89,136.85,18.2678]
[1719362369432,7.3041,136.91,136.87,7.3061]
[1719362369627,7.3037,136.92,136.88,7.3056]
[1719362369846,26.89,136.89,136.88,7.3056]
[1719362370340,26.89,136.89,136.87,25.5713]
[1719362371954,7.3037,136.92,136.88,7.3053]
[1719362372160,7.3032,136.93,136.89,7.3049]
[1719362373257,26.89,136.9,136.88,7.3055]
[1719362373948,7.3035,136.92,136.88,7.3055]
[1719362378061,7.3035,136.92,136.87,32.2265]
[1719362379550,7.304,136.91,136.87,32.2265]
[1719362383063,7.3056,136.88,136.84,47.7897]
[1719362383240,36.5114,136.95,136.84,40.4824]
[1719362383446,26.89,136.87,136.84,40.4824]
[1719362384174,26.89,136.87,136.85,7.3069]
[1719362384763,7.3057,136.88,136.84,47.79]
[1719362387360,7.3053,136.89,136.84,47.79]
[1719362388059,7.3053,136.89,136.85,7.3071]
[1719362389866,7.3047,136.9,136.86,7.3066]
[1719362391451,7.3052,136.89,136.85,7.3071]
[1719362393349,7.3058,136.88,136.84,47.7901]
[1719362393565,7.3062,136.87,136.84,18.2682]
[1719362393959,7.3062,136.87,136.84,25.576]
[1719362394270,7.3058,136.88,136.84,25.576]
[1719362395766,7.3053,136.89,136.85,7.3072]
[1719362400267,26.89,136.86,136.85,7.3072]
[1719362400873,26.89,136.86,136.83,7.3081]
[1719362401172,7.3068,136.86,136.82,7.3087]
[1719362403775,7.3073,136.85,136.81,31.8219]
[1719362404074,7.3073,136.85,136.78,15.2431]
[1719362404075,15.4202,136.87,136.79,7.31]
[1719362404272,26.89,136.8,136.79,7.31]
[1719362405778,26.89,136.8,136.78,47.4481]
[1719362405979,7.3089,136.82,136.78,47.4481]
[1719362406979,7.3089,136.82,136.78,25.588]
[1719362407379,26.89,136.79,136.77,0.8599649]
[1719362407564,26.89,136.78,136.77,0.8599649]
[1719362407755,26.89,136.78,136.77,8.1710649]
[1719362409279,7.3091,136.82,136.78,7.3109]
[1719362409479,7.3085,136.83,136.78,7.3109]
[1719362410057,7.3078,136.84,136.79,18.2755]
[1719362410307,26.89,136.8,136.79,25.5859]
[1719362410684,7.3074,136.85,136.8,7.3095]
[1719362410988,7.3078,136.84,136.8,7.3095]
[1719362411191,7.3084,136.83,136.79,25.5858]
[1719362411684,7.309,136.82,136.78,7.3107]
[1719362411985,6.69741375,136.85,136.77,0.8599649]
[1719362412279,7.31,136.8,136.77,0.8599649]
[1719362412483,7.3096,136.81,136.77,8.1714649]
[1719362413271,7.3099,136.8,136.77,0.8599649]
[1719362413984,7.3095,136.81,136.77,0.8599649]
[1719362416491,7.3095,136.81,136.77,8.1713649]
[1719362417277,7.3089,136.82,136.77,8.1713649]
[1719362418277,7.3094,136.81,136.77,8.1713649]
[1719362419369,7.3094,136.81,136.77,0.8599649]
[1719362420280,7.86094104,136.84,136.77,19.1383649]
[1719362420485,26.89,136.78,136.77,26.4497649]
[1719362420791,26.89,136.78,136.77,19.1383649]
[1719362421797,26.89,136.78,136.77,0.8599649]
[1719362422482,7.3099,136.8,136.77,0.8599649]
[1719362422681,7.3095,136.81,136.77,0.8599649]
[1719362423096,7.3101,136.8,136.77,0.8599649]
[1719362425497,26.89,136.78,136.77,0.8599649]
[1719362427993,34.201,136.78,136.77,0.8599649]
[1719362430582,18.2735,136.81,136.77,0.8599649]
[1719362430583,7.3097,136.81,136.77,0.8599649]
[1719362430999,7.3092,136.82,136.77,8.1712649]
[1719362431299,26.89,136.78,136.77,8.1712649]
[1719362431675,26.89,136.78,136.77,0.8599649]
[1719362432604,7.3101,136.8,136.77,0.8599649]
[1719362433687,7.3105,136.79,136.77,0.8599649]
[1719362434913,7.3101,136.8,136.77,0.8599649]
[1719362436007,7.3105,136.79,136.77,0.8599649]
[1719362441913,0.17,136.81,136.77,0.8599649]
[1719362441914,7.3101,136.8,136.77,0.8599649]
[1719362442090,0.17,136.81,136.77,0.8599649]
[1719362442584,0.34,136.82,136.77,0.8599649]
[1719362443201,0.17,136.82,136.77,8.1713649]
[1719362443400,20.0,136.83,136.77,8.1713649]
[1719362443892,7.3095,136.81,136.77,8.1713649]
[1719362444612,7.3102,136.8,136.77,0.8599649]
[1719362445504,34.201,136.78,136.77,0.8599649]
[1719362445719,34.371,136.78,136.77,0.8599649]
[1719362445909,7.3106,136.79,136.77,0.8599649]
[1719362446613,26.89,136.78,136.77,0.8599649]
[1719362446809,34.201,136.78,136.77,0.8599649]
[1719362451827,34.541,136.78,136.77,0.8599649]
[1719362452504,7.3126,136.75,136.7,25.6021]
[1719362453219,7.3126,136.75,136.68,22.0417]
[1719362453220,7.3142,136.72,136.68,22.0417]
[1719362453428,7.3148,136.71,136.68,22.0417]
[1719362453601,7.3144,136.72,136.68,22.0417]
[1719362454130,7.3148,136.71,136.68,22.0417]
[1719362454303,7.3148,136.71,136.68,21.9913]
[1719362454803,7.3148,136.71,136.66,7.3173]
[1719362455024,7.3143,136.72,136.67,7.3168]
[1719362455431,7.3147,136.71,136.67,7.3168]
[1719362455613,7.4841,136.73,136.68,7.3159]
[1719362456003,7.3142,136.72,136.67,7.3167]
[1719362456431,7.3147,136.71,136.67,7.3167]
[1719362457437,7.3143,136.72,136.67,7.3167]
[1719362458228,7.4837,136.73,136.68,7.3163]
[1719362458535,26.89,136.69,136.68,7.3163]
[1719362458923,26.89,136.71,136.68,7.3163]
[1719362459128,26.89,136.69,136.68,7.3163]
[1719362461923,7.4833,136.74,136.69,7.3155]
[1719362462232,7.3133,136.74,136.69,7.3155]
[1719362462738,6.69676893,136.75,136.69,7.3155]
[1719362462739,7.3137,136.73,136.69,7.3155]
[1719362463222,7.3137,136.73,136.68,25.6062]
[1719362463416,7.3142,136.72,136.68,18.29]
[1719362464439,7.3148,136.71,136.66,7.3172]
[1719362467354,7.3148,136.71,136.67,7.3168]
[1719362468743,7.3144,136.72,136.67,7.3168]
[1719362469352,7.3144,136.72,136.68,7.3163]
[1719362469946,7.3144,136.72,136.67,25.6087]
[1719362473842,7.3144,136.72,136.68,7.3162]
[1719362474029,7.3138,136.73,136.68,7.3162]
[1719362474766,7.3143,136.72,136.68,7.3162]
[1719362474940,41.01546893,136.75,136.66,7.3173]
[1719362475250,7.03741375,136.74,136.66,7.3173]
[1719362475547,7.03741375,136.74,136.65,21.9787]
[1719362475548,18.2842,136.73,136.65,21.9787]
[1719362475850,34.2075,136.66,136.63,0.8599649]
[1719362476042,26.89,136.64,136.63,0.8599649]
[1719362476231,7.3175,136.66,136.63,0.8599649]
[1719362476835,7.3171,136.67,136.63,0.8599649]
[1719362477333,40.5462,136.71,136.63,0.8599649]
[1719362477334,0.17,136.68,136.63,0.8599649]
[1719362477532,26.89,136.64,136.63,0.8599649]
[1719362479646,34.2085,136.64,136.63,0.8599649]
[1719362482172,34.3785,136.64,136.63,0.8599649]
[1719362482369,34.5485,136.64,136.63,0.8599649]
[1719362482670,7.3207,136.6,136.55,40.4499]
[1719362482967,7.3203,136.61,136.56,7.3227]
[1719362483164,7.3203,136.61,136.57,7.3221]
[1719362483937,0.17,136.62,136.55,47.7727]
[1719362484166,0.34,136.62,136.55,47.7727]
[1719362484558,7.3217,136.58,136.55,6.0988]
[1719362484776,7.3213,136.59,136.55,6.0988]
[1719362485067,7.3217,136.58,136.53,7.3242]
[1719362485251,15.5294,136.59,136.52,41.6794]
[1719362485252,7.3223,136.57,136.52,41.6794]
[1719362485461,7.3218,136.58,136.53,7.3241]
[1719362486152,23.0207,136.59,136.54,7.3237]
[1719362486356,7.3217,136.58,136.54,7.3237]
[1719362486858,7.3217,136.58,136.53,7.3241]
[1719362487171,7.3217,136.58,136.54,7.3238]
[1719362487370,23.0207,136.59,136.54,7.3238]
[1719362487581,22.8507,136.59,136.54,7.3238]
[1719362488067,7.3217,136.58,136.53,7.3242]
[1719362488378,7.3233,136.56,136.52,16.0436]
[1719362488573,7.3233,136.56,136.51,7.3251]
[1719362488782,7.3239,136.54,136.5,7.3258]
[1719362488993,7.3239,136.54,136.49,41.8453649]
[1719362489161,34.0026,136.59,136.49,41.8453649]
[1719362489365,18.3065,136.57,136.49,23.5298649]
[1719362489682,23.00078294,136.58,136.51,7.3254]
[1719362489683,7.6632,136.56,136.51,7.3254]
[1719362489883,7.4932,136.56,136.51,7.3254]
[1719362491253,7.3235,136.55,136.5,25.6403]
[1719362491462,7.3235,136.55,136.5,18.3144]
[1719362491674,7.3235,136.55,136.5,25.6403]
[1719362494888,7.3239,136.54,136.5,18.3144]
[1719362495110,0.17,136.56,136.5,18.3144]
[1719362495381,26.89,136.57,136.5,18.3144]
[1719362495870,34.2126,136.57,136.52,7.3249]
[1719362496463,7.3212,136.59,136.54,7.3237]
[1719362497483,7.3218,136.58,136.52,25.6359]
[1719362497683,7.3223,136.57,136.52,25.6359]
[1719362498393,7.3215,136.59,136.53,7.3241]
[1719362498568,7.3219,136.58,136.53,7.3241]
[1719362499374,7.3223,136.57,136.52,25.6363]
[1719362499974,7.3218,136.58,136.53,7.3243]
[1719362501085,7.3223,136.57,136.52,25.6362]
[1719362501877,7.3229,136.56,136.52,18.3115]
[1719362502081,18.304,136.59,136.49,41.8458649]
[1719362502282,36.9411,136.61,136.49,23.5298649]
[1719362502283,7.03741375,136.58,136.49,23.5298649]
[1719362502605,7.324,136.54,136.49,30.8558649]
[1719362502817,7.3234,136.55,136.5,7.3259]
[1719362503976,7.3234,136.55,136.49,23.5298649]
[1719362503977,7.3241,136.54,136.49,23.5298649]
[1719362504277,7.3233,136.55,136.5,7.3258]
[1719362504677,7.3238,136.54,136.49,30.8563649]
[1719362505383,26.89,136.52,136.49,23.5298649]
[1719362505690,7.3245,136.53,136.49,30.8562649]
[1719362505893,7.3239,136.54,136.49,30.8562649]
[1719362506277,26.89,136.51,136.49,30.8562649]
[1719362506686,7.3234,136.55,136.5,7.326]
[1719362507084,26.89,136.52,136.5,7.326]
[1719362507379,7.3234,136.55,136.5,7.326]
[1719362507781,7.3242,136.54,136.49,30.8562649]
[1719362508685,7.3244,136.53,136.49,0.8599649]
[1719362508893,26.89,136.5,136.49,0.8599649]
[1719362509305,0.17,136.54,136.49,0.8599649]
[1719362509306,7.3244,136.53,136.49,0.8599649]
[1719362510015,26.89,136.5,136.49,0.8599649]
[1719362510215,7.3244,136.53,136.49,8.1863649]
[1719362510593,7.4934,136.55,136.49,19.1756649]
[1719362511093,7.3225,136.57,136.52,7.3246]
[1719362511402,7.3228,136.56,136.51,25.6381]
[1719362511778,7.3233,136.55,136.51,18.3129]
[1719362512284,26.89,136.52,136.51,18.3129]
[1719362512597,26.89,136.52,136.5,29.1844]
[1719362513002,7.3229,136.56,136.51,7.3253]
[1719362513199,7.3227,136.57,136.52,25.6364]
[1719362513581,7.3228,136.56,136.52,18.3117]
[1719362514410,7.3228,136.56,136.51,7.3253]
[1719362515217,7.3233,136.55,136.5,29.1844]
[1719362515483,7.3239,136.54,136.5,21.8586]
[1719362515614,7.3244,136.53,136.5,21.8586]
[1719362515824,22.82521375,136.58,136.5,21.8586]
[1719362516125,7.3239,136.54,136.5,29.1844]
[1719362516516,7.3235,136.55,136.5,29.1844]
[1719362517818,18.6463,136.57,136.5,21.8586]
[1719362518329,7.324,136.54,136.5,21.8586]
[1719362518519,7.324,136.54,136.5,29.1845]
[1719362518734,7.324,136.54,136.5,21.8586]
[1719362519238,7.3244,136.53,136.5,6.3742]
[1719362519537,7.324,136.54,136.5,6.3742]
[1719362519741,7.3244,136.53,136.5,6.3742]
[1719362520241,7.323,136.56,136.51,7.3253]
[1719362520554,6.69741375,136.58,136.52,15.7597]
[1719362520720,15.2828,136.62,136.52,15.7597]
[1719362520721,29.30321375,136.62,136.54,18.3092]
[1719362520915,26.89,136.56,136.54,25.6327]
[1719362521120,31.66745637,136.61,136.52,15.7597]
[1719362521320,26.89,136.55,136.52,23.0846]
[1719362522009,6.66944262,136.6,136.53,18.3106]
[1719362522208,7.3217,136.58,136.54,7.3238]
[1719362522453,7.3217,136.58,136.53,18.3106]
[1719362523128,7.3217,136.58,136.53,25.6349]
[1719362523324,26.89,136.55,136.52,23.0845]
[1719362523659,24.99801375,136.61,136.5,24.6882]
[1719362523660,7.3242,136.54,136.5,32.0141]
[1719362524326,26.89,136.57,136.5,24.6882]
[1719362524519,7.3231,136.56,136.51,7.3252]
[1719362525639,26.89,136.54,136.51,7.3252]
[1719362526019,26.89,136.54,136.5,32.014]
[1719362526223,26.89,136.54,136.51,7.3254]
[1719362526634,26.89,136.54,136.5,32.014]
[1719362526842,18.3048,136.58,136.5,32.014]
[1719362527042,7.3235,136.55,136.5,32.014]
[1719362527857,7.3229,136.56,136.51,7.3254]
[1719362528024,7.3233,136.55,136.51,7.3254]
[1719362528346,7.3233,136.55,136.5,32.014]
[1719362529248,7.3233,136.55,136.51,7.3253]
[1719362529446,6.86741375,136.6,136.52,18.3121]
[1719362529761,26.89,136.56,136.52,25.6368]
[1719362532544,7.3228,136.56,136.52,25.6368]
[1719362533338,7.3224,136.57,136.52,25.6368]
[1719362533646,7.3224,136.57,136.53,7.3243]
[1719362535175,7.3228,136.56,136.52,18.3121]
[1719362535361,7.3228,136.56,136.52,25.637]
[1719362535742,7.3233,136.55,136.51,7.3253]
[1719362535983,7.3233,136.55,136.5,13.7]
[1719362536284,7.3233,136.55,136.51,7.3253]
[1719362536449,7.3229,136.56,136.51,7.3253]
[1719362536650,18.306,136.57,136.5,6.3742]
[1719362536862,26.89,136.52,136.5,6.3742]
[1719362537049,26.89,136.52,136.5,13.7001]
[1719362537641,7.3242,136.54,136.5,13.7001]
[1719362538543,7.3226,136.57,136.52,7.3245]
[1719362538741,32.49757181,136.6,136.52,7.3245]
[1719362538742,24.99961375,136.6,136.52,7.3245]
[1719362538946,7.3229,136.56,136.51,25.6386]
[1719362540259,7.3229,136.56,136.52,7.3248]
[1719362540578,7.3229,136.56,136.51,25.6386]
[1719362541069,7.3229,136.56,136.52,7.3249]
[1719362542287,6.69741375,136.6,136.53,18.3105]
[1719362542445,7.3218,136.58,136.53,25.6346]
[1719362543162,7.3218,136.58,136.54,7.3238]
[1719362543353,7.3218,136.58,136.53,25.6346]
[1719362550887,7.3222,136.57,136.53,25.6346]
[1719362551189,18.303,136.59,136.51,7.3254]
[1719362551355,7.3234,136.55,136.5,32.0144]
[1719362551558,25.00041375,136.59,136.5,24.6886]
[1719362551765,0.17,136.58,136.5,24.6886]
[1719362552179,7.3239,136.54,136.5,32.0145]
[1719362552489,26.89,136.53,136.5,6.3742]
[1719362552785,7.324,136.54,136.5,6.3742]
[1719362553085,7.3244,136.53,136.5,6.3742]
[1719362553277,7.325,136.52,136.49,16.1225649]
[1719362554749,7.3245,136.53,136.49,16.1225649]
[1719362558981,7.3249,136.52,136.49,16.1225649]
[1719362559308,7.3244,136.53,136.49,0.8599649]
[1719362561988,7.3253,136.52,136.49,0.8599649]
[1719362562192,7.3255,136.51,136.49,0.8599649]
[1719362562570,7.3251,136.52,136.49,0.8599649]
[1719362563066,7.3255,136.51,136.49,0.8599649]
[1719362563379,7.326,136.5,136.49,0.8599649]
[1719362565780,14.79619153,136.5,136.49,0.8599649]
[1719362566093,14.79619153,136.5,136.42,0.04343518]
[1719362566094,7.3285,136.46,136.42,0.04343518]
[1719362566264,7.3282,136.46,136.42,0.04343518]
[1719362567183,7.47019153,136.49,136.42,0.04343518]
[1719362567184,7.3278,136.47,136.42,0.04343518]
[1719362567386,30.0,136.45,136.42,0.04343518]
[1719362569568,30.0,136.45,136.42,7.37343518]
[1719362569771,30.0,136.45,136.43,18.3241]
[1719362569997,30.0,136.45,136.44,7.3292]
[1719362570799,7.3287,136.45,136.42,0.04343518]
[1719362571291,7.3283,136.46,136.42,0.04343518]
[1719362571876,30.0,136.44,136.42,0.04343518]
[1719362573388,7.3283,136.46,136.42,0.04343518]
[1719362574502,7.3288,136.45,136.42,0.04343518]
[1719362574707,26.89,136.43,136.42,0.04343518]
[1719362575408,7.3292,136.44,136.42,0.04343518]
[1719362575707,7.3288,136.45,136.42,0.04343518]
[1719362576279,26.89,136.43,136.42,0.04343518]
[1719362577109,34.2197,136.43,136.42,0.04343518]
[1719362579982,14.79959153,136.44,136.42,0.04343518]
[1719362580185,26.89,136.43,136.42,0.04343518]
[1719362580411,7.47019153,136.44,136.42,0.04343518]
[1719362580616,7.3285,136.46,136.42,0.04343518]
[1719362580985,7.3286,136.45,136.42,0.04343518]
[1719362582084,7.3292,136.44,136.42,0.04343518]
[1719362586614,7.3297,136.43,136.42,0.04343518]
[1719362592413,41.68989153,136.43,136.42,0.04343518]
[1719362593018,41.68989153,136.43,136.42,3.518e-05]
[1719362593227,25.79649153,136.42,136.36,0.8599649]
[1719362593400,30.17,136.41,136.36,0.8599649]
[1719362593606,37.47019153,136.41,136.36,0.8599649]
[1719362594030,7.3314,136.4,136.36,0.8599649]
[1719362594317,7.3319,136.39,136.36,0.8599649]
[1719362594999,7.3315,136.4,136.36,0.8599649]
[1719362595935,7.3319,136.39,136.36,0.8599649]
[1719362598832,7.3324,136.38,136.36,0.8599649]
[1719362599124,37.47019153,136.41,136.36,0.8599649]
[1719362599125,7.3329,136.37,136.36,0.8599649]
[1719362600113,14.80309153,136.37,136.36,0.8599649]
[1719362600832,44.80309153,136.37,136.36,0.8599649]
[1719362601129,29.9596,136.37,136.36,0.8599649]
[1719362601299,7.3315,136.4,136.36,0.8599649]
[1719362601496,6.66944262,136.42,136.36,23.4296649]
[1719362601715,14.00004262,136.42,136.37,7.3324]
[1719362601921,6.66944262,136.42,136.38,7.3323]
[1719362602397,13.99974262,136.42,136.37,7.3328]
[1719362603104,7.3308,136.41,136.36,49.0963649]
[1719362603305,26.89,136.4,136.37,7.3329]
[1719362603517,26.89,136.4,136.38,7.3324]
[1719362603826,6.66944262,136.42,136.39,7.3317]
[1719362604209,26.89,136.41,136.38,25.663]
[1719362604407,26.89,136.41,136.38,18.3306]
[1719362604931,26.89,136.41,136.37,7.3329]
[1719362605551,26.89,136.41,136.38,7.3324]
[1719362605726,6.66944262,136.42,136.38,7.3324]
[1719362606807,13.99974262,136.42,136.37,25.6649]
[1719362609629,6.66944262,136.42,136.38,7.3324]
[1719362610133,13.99974262,136.42,136.38,7.3324]
[1719362610302,13.99974262,136.42,136.37,25.6649]
[1719362611812,6.66944262,136.42,136.37,18.3321]
[1719362612010,6.66944262,136.42,136.37,25.6647]
[1719362612011,13.99984262,136.42,136.37,25.6647]
[1719362612729,13.99984262,136.42,136.38,7.3324]
[1719362613230,6.66944262,136.42,136.38,7.3324]
[1719362614617,13.99994262,136.42,136.37,25.665]
[1719362623217,7.3309,136.41,136.37,25.665]
[1719362623516,7.3309,136.41,136.37,18.3321]
[1719362624443,26.89,136.39,136.36,0.8599649]
[1719362624944,34.2219,136.39,136.36,0.8599649]
[1719362625518,26.89,136.39,136.36,0.8599649]
[1719362625718,26.89,136.39,136.36,8.1933649]
[1719362626141,26.89,136.39,136.36,0.8599649]
[1719362626549,7.331,136.41,136.36,8.1933649]
[1719362627638,7.3315,136.4,136.36,0.8599649]
[1719362627820,7.3309,136.41,136.36,8.1932649]
[1719362628057,24.99534262,136.42,136.36,0.8599649]
[1719362628226,6.66944262,136.42,136.36,0.8599649]
[1719362628447,7.3314,136.4,136.36,0.8599649]
[1719362628647,34.2214,136.4,136.36,0.8599649]
[1719362628849,26.89,136.4,136.36,8.1934649]
[1719362629054,14.13963415,136.42,136.37,7.3324]
[1719362629345,14.13963415,136.42,136.36,19.1928649]
[1719362629825,7.3314,136.4,136.36,0.8599649]
[1719362630652,7.3319,136.39,136.36,0.8599649]
[1719362631021,7.3328,136.38,136.36,0.8599649]
[1719362632739,7.3329,136.37,136.36,0.8599649]
[1719362633557,7.3329,136.37,136.36,6.49e-05]
[1719362633558,41.69309153,136.37,136.36,6.49e-05]
[1719362634432,7.3356,136.33,136.28,7.3377]
[1719362634960,7.47019153,136.36,136.28,7.3377]
[1719362634961,7.3346,136.34,136.29,7.3371]
[1719362635335,34.36019153,136.36,136.28,18.344]
[1719362635535,7.3349,136.34,136.29,7.3372]
[1719362635869,7.3347,136.34,136.29,7.3369]
[1719362636457,34.36019153,136.36,136.26,29.3614]
[1719362636458,7.3358,136.32,136.26,29.3614]
[1719362636760,7.47019153,136.34,136.27,26.89]
[1719362636933,7.47019153,136.34,136.3,7.3363]
[1719362637127,14.80509153,136.34,136.29,7.3371]
[1719362640464,7.3336,136.36,136.3,25.6772]
[1719362640666,7.47019153,136.37,136.3,25.6772]
[1719362640960,7.3341,136.35,136.3,25.6772]
[1719362641774,7.3336,136.36,136.31,7.3361]
[1719362641938,14.13963415,136.37,136.32,18.338]
[1719362642265,14.13963415,136.37,136.33,7.3347]
[1719362642465,14.13963415,136.37,136.32,18.338]
[1719362642466,21.47263415,136.37,136.32,25.6734]
[1719362643739,14.13963415,136.37,136.33,7.335]
[1719362644967,21.47273415,136.37,136.32,25.6735]
[1719362645349,14.13963415,136.37,136.33,7.335]
[1719362645558,14.13963415,136.37,136.34,7.3346]
[1719362645868,14.13963415,136.37,136.33,7.3349]
[1719362646052,14.13963415,136.37,136.34,7.3345]
[1719362646241,7.331,136.41,136.36,7.3334]
[1719362646443,7.3314,136.4,136.36,7.3334]
[1719362646837,7.3319,136.39,136.34,18.3359]
[1719362647050,7.3319,136.39,136.34,45.2259]
[1719362647347,7.3319,136.39,136.34,52.56]
[1719362647943,7.3325,136.38,136.34,18.3359]
[1719362648555,7.3325,136.38,136.34,25.6704]
[1719362649262,14.13963415,136.42,136.34,25.6704]
[1719362649571,7.332,136.39,136.34,25.6704]
[1719362651356,7.332,136.39,136.35,7.334]
[1719362651667,7.3315,136.4,136.35,7.334]
[1719362651841,7.3323,136.39,136.34,18.3359]
[1719362652047,7.3323,136.39,136.35,7.334]
[1719362652246,7.3315,136.4,136.35,7.334]
[1719362653761,7.3319,136.39,136.34,25.6703]
[1719362653976,7.3325,136.38,136.34,25.6703]
[1719362654152,7.3325,136.38,136.34,18.3359]
[1719362654945,7.3325,136.38,136.34,25.6704]
[1719362655158,7.332,136.39,136.34,25.6704]
[1719362656144,7.47019153,136.41,136.34,25.6704]
[1719362656145,7.3324,136.38,136.34,25.6704]
[1719362656342,7.3324,136.38,136.34,18.3359]
[1719362657572,7.3324,136.38,136.34,25.6704]
[1719362657951,7.3321,136.39,136.34,25.6704]
[1719362658272,7.3325,136.38,136.34,18.3359]
[1719362658571,7.3325,136.38,136.34,25.6704]
[1719362658742,7.3321,136.39,136.34,25.6704]
[1719362659544,7.3315,136.4,136.35,7.3338]
[1719362660276,7.3315,136.4,136.36,7.3334]
[1719362660646,7.3315,136.4,136.35,7.3338]
[1719362661869,7.3321,136.39,136.34,25.6702]
[1719362662067,7.3334,136.37,136.32,7.3352]
[1719362662374,7.3335,136.36,136.31,31.6787]
[1719362662578,7.3341,136.35,136.31,31.6787]
[1719362663174,41.88159153,136.39,136.31,6.0034]
[1719362663386,7.47019153,136.38,136.31,6.0034]
[1719362663683,7.333,136.37,136.32,7.3356]
[1719362663858,7.47019153,136.38,136.32,7.3356]
[1719362664860,7.47019153,136.38,136.31,13.3394]
[1719362665380,7.3337,136.36,136.31,13.3394]
[1719362665872,7.3337,136.36,136.32,7.3356]
[1719362667284,7.3337,136.36,136.31,13.3394]
[1719362669582,7.47019153,136.38,136.32,18.3389]
[1719362669782,18.3267,136.42,136.35,7.334]
[1719362670088,26.89,136.38,136.35,7.334]
[1719362670590,26.89,136.39,136.35,7.334]
[1719362670760,7.3317,136.4,136.35,7.334]
[1719362671479,7.331,136.41,136.36,7.3333]
[1719362671669,7.47019153,136.42,136.37,26.89]
[1719362671862,7.47019153,136.42,136.38,25.6627]
[1719362672184,7.47019153,136.42,136.39,7.3317]